fUST/lending_fUST_20240112
["ID","MTS","AMOUNT","RATE_DAILY","PERIOD"]
[311301498,1705051842381,-500.0,0.00027394,2]
[311301499,1705051842390,-500.0,0.00027394,2]
[311301500,1705051842400,-500.0,0.00027394,2]
[311301501,1705051842408,-501.04999357,0.00027394,2]
[311301502,1705051842418,-500.0,0.00027394,2]
[311301503,1705051842427,-500.0,0.00027394,2]
[311301504,1705051842436,-500.0,0.00027394,2]
[311301505,1705051842445,-500.0,0.00027394,2]
[311301506,1705051842454,-500.0,0.00027394,2]
[311301507,1705051842463,-500.0,0.00027394,2]
[311301508,1705051842472,-501.07304667,0.00027394,2]
[311301509,1705051842481,-500.0,0.00027394,2]
[311301510,1705051842492,-503.4340707,0.00027394,2]
[311301511,1705051842501,-501.50194753,0.00027394,2]
[311301512,1705051842511,-500.0,0.00027394,2]
[311301513,1705051842520,-500.0,0.00027394,2]
[311301514,1705051842529,-500.0,0.00027394,2]
[311301515,1705051842538,-451.65400802,0.00027394,2]
[311301516,1705051842552,-500.0,0.00027394,2]
[311301517,1705051842561,-521.66517936,0.00027394,2]
[311301518,1705051842570,-500.33529671,0.00027394,2]
[311301519,1705051842580,-500.0,0.00027394,2]
[311301520,1705051842589,-500.0,0.00027394,2]
[311301521,1705051842598,-500.0,0.00027394,2]
[311301522,1705051842607,-500.0,0.00027394,2]
[311301523,1705051842616,-500.0,0.00027394,2]
[311301524,1705051842626,-424.16121718,0.00027394,2]
[311301525,1705051842635,-265.65054058,0.00027394,2]
[311301526,1705051842644,-500.0,0.00027394,2]
[311301527,1705051842653,-500.0,0.00027394,2]
[311301528,1705051842662,-500.0,0.00027394,2]
[311301529,1705051842671,-1000.0,0.00027394,2]
[311301530,1705051842681,-500.0,0.00027394,2]
[311301531,1705051842690,-621.08824954,0.00027394,2]
[311301532,1705051842699,-503.85552266,0.00027394,2]
[311301533,1705051842708,-503.98052669,0.00027394,2]
[311301534,1705051842722,-502.74745374,0.00027394,2]
[311301535,1705051842732,-500.0,0.00027394,2]
[311301536,1705051842743,-500.79379919,0.00027394,2]
[311301537,1705051842753,-324.53901235,0.00027394,2]
[311301538,1705051842762,-502.81795589,0.00027394,2]
[311301539,1705051842771,-500.0,0.00027394,2]
[311301540,1705051842780,-500.0,0.00027394,2]
[311301541,1705051842789,-500.0,0.00027394,2]
[311301542,1705051842798,-500.0,0.00027394,2]
[311301543,1705051842807,-500.0,0.00027394,2]
[311301544,1705051842816,-500.0,0.00027394,2]
[311301545,1705051842825,-500.0,0.00027394,2]
[311301546,1705051842834,-505.05837754,0.00027394,2]
[311301547,1705051842843,-500.0,0.00027394,2]
[311301548,1705051842853,-500.0,0.00027394,2]
[311301549,1705051842862,-500.0,0.00027394,2]
[311301550,1705051842874,-500.0,0.00027394,2]
[311301551,1705051842883,-500.0,0.00027394,2]
[311301552,1705051842892,-500.0,0.00027394,2]
[311301553,1705051842901,-501.23123172,0.00027394,2]
[311301554,1705051842910,-501.98888998,0.00027394,2]
[311301555,1705051842919,-500.0,0.00027394,2]
[311301556,1705051842928,-627.46919322,0.00027394,2]
[311301557,1705051842937,-500.84331134,0.00027394,2]
[311301558,1705051842946,-500.99325054,0.00027394,2]
[311301559,1705051842956,-247.45274419,0.00027394,2]
[311301560,1705051842964,-505.0382672,0.00027394,2]
[311301561,1705051842973,-500.0,0.00027394,2]
[311301562,1705051842982,-500.0,0.00027394,2]
[311301563,1705051842993,-506.03774952,0.00027394,2]
[311301564,1705051843003,-504.32950363,0.00027394,2]
[311301565,1705051843011,-437.47651782,0.00027394,2]
[311301566,1705051843020,-200.0,0.00027394,2]
[311301567,1705051843029,-500.0,0.00027394,2]
[311301568,1705051843039,-500.0,0.00027394,2]
[311301569,1705051843048,-500.0,0.00027394,2]
[311301570,1705051843057,-500.0,0.00027394,2]
[311301571,1705051843066,-500.0,0.00027394,2]
[311301572,1705051843075,-500.0,0.00027394,2]
[311301573,1705051843084,-500.0,0.00027394,2]
[311301574,1705051843094,-866.65,0.00027394,2]
[311301575,1705051843103,-500.0,0.00027394,2]
[311301576,1705051843113,-500.0,0.00027394,2]
[311301577,1705051843123,-639.55190548,0.00027394,2]
[311301579,1705051843132,-501.24111188,0.00027394,2]
[311301580,1705051843141,-520.82405468,0.00027394,2]
[311301581,1705051843150,-500.0,0.00027394,2]
[311301582,1705051843160,-500.0,0.00027394,2]
[311301583,1705051843169,-509.17,0.00027394,2]
[311301584,1705051843178,-500.0,0.00027394,2]
[311301585,1705051843187,-500.0,0.00027394,2]
[311301587,1705051843196,-504.70562104,0.00027394,2]
[311301589,1705051843205,-500.0,0.00027394,2]
[311301592,1705051843213,-500.0,0.00027394,2]
[311301594,1705051843222,-500.0,0.00027394,2]
[311301597,1705051843231,-510.48923295,0.00027394,2]
[311301599,1705051843244,-500.0,0.00027394,2]
[311301602,1705051843254,-500.0,0.00027394,2]
[311301604,1705051843264,-500.0,0.00027394,2]
[311301605,1705051843273,-511.6283861,0.00027394,2]
[311301607,1705051843282,-500.0,0.00027394,2]
[311301610,1705051843291,-500.0,0.00027394,2]
[311301612,1705051843300,-500.0,0.00027394,2]
[311301615,1705051843309,-500.0,0.00027394,2]
[311301618,1705051843318,-506.19158785,0.00027394,2]
[311301620,1705051843327,-2460.42,0.00027394,2]
[311301622,1705051843336,-3302.88697037,0.00027394,2]
[311301628,1705051843767,-780.34144432,0.00024651,2]
[311301629,1705051843778,-599.1463567,0.00024651,2]
[311301630,1705051843787,-69.51448407,0.00027393,2]
[311301631,1705051843827,-430.48551593,0.00027393,2]
[311301632,1705051843837,-6487.35359846,0.00027394,2]
[311301633,1705051843848,-471.62943117,0.00027394,2]
[311301634,1705051843857,-505.5212539,0.00027394,2]
[311301635,1705051843866,-1075.46,0.00027394,2]
[311301636,1705051843875,-565.37932218,0.00027394,2]
[311301637,1705051843884,-501.77134193,0.00027394,2]
[311301638,1705051843894,-618.80065839,0.00027394,2]
[311301639,1705051843902,-550.06,0.00027394,2]
[311301640,1705051843913,-500.0,0.00027394,2]
[311301641,1705051843922,-500.0,0.00027394,2]
[311301642,1705051843931,-500.0,0.00027394,2]
[311301643,1705051843940,-626.24993028,0.00027394,2]
[311301644,1705051843949,-506.48146698,0.00027394,2]
[311301645,1705051843958,-500.0,0.00027394,2]
[311301646,1705051843966,-500.0,0.00027394,2]
[311301647,1705051843975,-500.0,0.00027394,2]
[311301648,1705051843984,-945.21515155,0.00027395,2]
[311301667,1705051848338,-456.17,0.0002739,3]
[311301672,1705051873823,28695.50570026,0.0003,120]
[311301673,1705051922084,883.0,0.0003,120]
[311301879,1705053038019,-1379.48780102,0.00024591,2]
[311301880,1705053038029,-260.66617063,0.00024591,2]
[311301881,1705053038038,-2653.03070945,0.00024592,2]
[311301882,1705053038047,-200.0,0.000246,2]
[311301883,1705053038056,-166.666666,0.00025255,2]
[311301884,1705053038065,-620.19291714,0.00026334,2]
[311301885,1705053038074,-197.246188,0.00027293,2]
[311301887,1705053038084,-1557.68,0.00027382,3]
[311301889,1705053038093,-986.5125136,0.00027382,3]
[311301891,1705053038104,-1707.5174864,0.00027382,3]
[311301893,1705053038113,-2245.03,0.00027382,3]
[311301895,1705053038122,-155.034114,0.0002739,2]
[311301897,1705053038131,-181.4306017,0.00027392,2]
[311301899,1705053038141,-872.56977946,0.00027392,2]
[311301901,1705053038150,-500.0,0.00027392,2]
[311301903,1705053038158,-500.0,0.00027392,2]
[311301905,1705053038167,-501.44182917,0.00027392,2]
[311301906,1705053038177,-500.0,0.00027392,2]
[311301908,1705053038186,-500.0,0.00027392,2]
[311301911,1705053038196,-167.9891494,0.00027392,2]
[311301913,1705053038206,-500.0,0.00027392,2]
[311301914,1705053038216,-504.35288983,0.00027392,2]
[311301916,1705053038228,-449.14383856,0.00027392,2]
[311301918,1705053038236,-36.54109001,0.00027392,2]
[311301929,1705053038329,-463.45890999,0.00027392,2]
[311301931,1705053038338,-597.34227916,0.00027392,2]
[311301933,1705053038348,-500.0,0.00027392,2]
[311301935,1705053038358,-500.0,0.00027392,2]
[311301937,1705053038367,-91.99875288,0.00027392,2]
[311301939,1705053038378,-409.12442992,0.00027392,2]
[311301941,1705053038387,-500.0,0.00027392,2]
[311301943,1705053038396,-500.0,0.00027392,2]
[311301945,1705053038405,-355.28746192,0.00027392,2]
[311301947,1705053038414,-507.12031994,0.00027392,2]
[311301949,1705053038423,-511.03090155,0.00027392,2]
[311301951,1705053038433,-500.0,0.00027392,2]
[311301953,1705053038442,-460.30040941,0.00027392,2]
[311301955,1705053038451,-406.80805071,0.00027392,2]
[311301957,1705053038460,-500.0,0.00027392,2]
[311301959,1705053038470,-500.0,0.00027392,2]
[311301961,1705053038480,-500.0,0.00027392,2]
[311301962,1705053038489,-500.0,0.00027392,2]
[311301964,1705053038498,-500.0,0.00027392,2]
[311301966,1705053038507,-512.9996888,0.00027392,2]
[311301968,1705053038516,-500.27431069,0.00027392,2]
[311301970,1705053038525,-500.0,0.00027392,2]
[311301972,1705053038534,-501.95023361,0.00027392,2]
[311301974,1705053038543,-403.09472175,0.00027392,2]
[311301976,1705053038553,-500.0,0.00027392,2]
[311301978,1705053038563,-500.0,0.00027392,2]
[311301980,1705053038572,-487.35413726,0.00027392,2]
[311301982,1705053038581,-505.4618838,0.00027392,2]
[311301984,1705053038591,-500.0,0.00027392,2]
[311301986,1705053038600,-970.04,0.00027392,2]
[311301988,1705053038609,-514.93362582,0.00027392,2]
[311301989,1705053038618,-500.0,0.00027392,2]
[311301991,1705053038627,-500.0,0.00027392,2]
[311301992,1705053038636,-195.4939658,0.00027392,2]
[311301994,1705053038645,-506.22767674,0.00027392,2]
[311301996,1705053038654,-500.0,0.00027392,2]
[311301998,1705053038663,-500.0,0.00027392,2]
[311302000,1705053038672,-507.25362827,0.00027392,2]
[311302002,1705053038681,-500.0,0.00027392,2]
[311302004,1705053038690,-500.0,0.00027392,2]
[311302006,1705053038699,-500.0,0.00027392,2]
[311302008,1705053038708,-712.72,0.00027392,2]
[311302010,1705053038717,-500.0,0.00027392,2]
[311302012,1705053038730,-500.0,0.00027392,2]
[311302014,1705053038739,-1625.41,0.00027392,2]
[311302016,1705053038747,-500.0,0.00027392,2]
[311302017,1705053038757,-500.0,0.00027392,2]
[311302019,1705053038766,-500.0,0.00027392,2]
[311302021,1705053038775,-533.68955845,0.00027392,2]
[311302023,1705053038784,-500.0,0.00027392,2]
[311302025,1705053038793,-502.52314927,0.00027392,2]
[311302027,1705053038802,-500.0,0.00027392,2]
[311302029,1705053038812,-500.0,0.00027392,2]
[311302031,1705053038821,-500.0,0.00027392,2]
[311302033,1705053038831,-500.0,0.00027392,2]
[311302035,1705053038840,-500.0,0.00027392,2]
[311302037,1705053038849,-500.0,0.00027392,2]
[311302039,1705053038858,-578.19318326,0.00027392,2]
[311302041,1705053038868,-513.89059742,0.00027392,2]
[311302043,1705053038877,-4689.82,0.00027392,2]
[311302045,1705053038885,-8570.18,0.00027392,2]
[311302047,1705053038894,-500.0,0.00027392,2]
[311302048,1705053038903,-500.0,0.00027392,2]
[311302050,1705053038912,-505.08334126,0.00027392,2]
[311302052,1705053038921,-500.0,0.00027392,2]
[311302054,1705053038949,-500.0,0.00027392,2]
[311302056,1705053038959,-500.68191644,0.00027392,2]
[311302058,1705053038968,-500.0,0.00027392,2]
[311302060,1705053038979,-500.0,0.00027392,2]
[311302062,1705053038989,-500.0,0.00027392,2]
[311302064,1705053038998,-500.0,0.00027392,2]
[311302066,1705053039008,-500.0,0.00027392,2]
[311302068,1705053039017,-500.0,0.00027392,2]
[311302070,1705053039026,-500.0,0.00027392,2]
[311302072,1705053039035,-500.0,0.00027392,2]
[311302074,1705053039044,-1902.04,0.00027392,2]
[311302076,1705053039054,-296.16532757,0.00027392,2]
[311302078,1705053039063,-500.0,0.00027392,2]
[311302080,1705053039072,-504.49424522,0.00027392,2]
[311302082,1705053039082,-2685.87,0.00027392,2]
[311302084,1705053039091,-509.12218011,0.00027392,2]
[311302086,1705053039100,-217.87985139,0.00027392,2]
[311302088,1705053039109,-567.75,0.00027392,2]
[311302089,1705053039119,-500.0,0.00027392,2]
[311302091,1705053039128,-500.0,0.00027392,2]
[311302093,1705053039138,-9834.29,0.00027392,2]
[311302095,1705053039147,-500.0,0.00027392,2]
[311302097,1705053039156,-500.0,0.00027392,2]
[311302099,1705053039165,-500.0,0.00027392,2]
[311302101,1705053039174,-500.0,0.00027392,2]
[311302103,1705053039183,-500.0,0.00027392,2]
[311302105,1705053039193,-753.81,0.00027392,2]
[311302107,1705053039202,-500.0,0.00027392,2]
[311302109,1705053039212,-500.0,0.00027392,2]
[311302111,1705053039223,-1259.28,0.00027392,2]
[311302113,1705053039232,-502.36660007,0.00027392,2]
[311302114,1705053039241,-500.0,0.00027392,2]
[311302116,1705053039250,-501.52502297,0.00027392,2]
[311302118,1705053039259,-377.69864775,0.00027392,2]
[311302120,1705053039269,-500.88932975,0.00027392,2]
[311302122,1705053039277,-500.0,0.00027392,2]
[311302124,1705053039286,-500.0,0.00027392,2]
[311302126,1705053039295,-500.0,0.00027393,2]
[311302128,1705053039304,-500.0,0.00027393,2]
[311302130,1705053039313,-500.0,0.00027393,2]
[311302132,1705053039321,-328.13136718,0.00027393,2]
[311302134,1705053039330,-500.0,0.00027393,2]
[311302136,1705053039339,-500.0,0.00027393,2]
[311302137,1705053039348,-500.0,0.00027393,2]
[311302139,1705053039357,-502.66284335,0.00027393,2]
[311302141,1705053039366,-500.0,0.00027393,2]
[311302143,1705053039375,-500.81712721,0.00027393,2]
[311302145,1705053039384,-500.0,0.00027393,2]
[311302157,1705053039486,-500.0,0.00027393,2]
[311302159,1705053039496,-501.84801416,0.00027393,2]
[311302161,1705053039505,-501.01217396,0.00027393,2]
[311302162,1705053039514,-502.7428182,0.00027393,2]
[311302164,1705053039523,-500.0,0.00027393,2]
[311302166,1705053039532,-492.339166,0.00027393,2]
[311302168,1705053039542,-500.0,0.00027393,2]
[311302170,1705053039551,-500.0,0.00027393,2]
[311302172,1705053039561,-502.34859861,0.00027393,2]
[311302174,1705053039569,-502.24841496,0.00027393,2]
[311302175,1705053039578,-500.0,0.00027393,2]
[311302176,1705053039587,-500.59982654,0.00027393,2]
[311302177,1705053039596,-501.36257294,0.00027393,2]
[311302178,1705053039605,-500.0,0.00027393,2]
[311302179,1705053039614,-539.58578246,0.00027393,2]
[311302180,1705053039623,-500.0,0.00027393,2]
[311302181,1705053039631,-500.0,0.00027393,2]
[311302182,1705053039640,-500.0,0.00027393,2]
[311302183,1705053039649,-506.21251482,0.00027393,2]
[311302184,1705053039658,-501.72477111,0.00027393,2]
[311302185,1705053039666,-500.0,0.00027393,2]
[311302186,1705053039675,-500.0,0.00027393,2]
[311302187,1705053039684,-503.26804536,0.00027393,2]
[311302188,1705053039693,-500.0,0.00027393,2]
[311302189,1705053039702,-506.61887692,0.00027393,2]
[311302190,1705053039712,-196.04503044,0.00027393,2]
[311302191,1705053039722,-500.0,0.00027393,2]
[311302192,1705053039731,-500.0,0.00027393,2]
[311302193,1705053039740,-500.0,0.00027393,2]
[311302194,1705053039749,-503.06721121,0.00027393,2]
[311302195,1705053039757,-409.79190279,0.00027393,2]
[311302196,1705053039766,-500.0,0.00027393,2]
[311302197,1705053039775,-500.0,0.00027393,2]
[311302198,1705053039784,-500.0,0.00027393,2]
[311302199,1705053039793,-356.77250309,0.00027393,2]
[311302200,1705053039801,-500.0,0.00027393,2]
[311302201,1705053039810,-531.53090181,0.00027393,2]
[311302202,1705053039819,-500.0,0.00027393,2]
[311302203,1705053039827,-502.16684977,0.00027393,2]
[311302204,1705053039836,-501.47295137,0.00027393,2]
[311302205,1705053039844,-558.9782599,0.00027393,2]
[311302206,1705053039853,-500.0,0.00027393,2]
[311302207,1705053039863,-500.0,0.00027393,2]
[311302209,1705053039872,-593.26069526,0.00027393,2]
[311302211,1705053039881,-500.0,0.00027393,2]
[311302213,1705053039890,-500.0,0.00027393,2]
[311302215,1705053039899,-572.23170912,0.00027393,2]
[311302218,1705053039913,-500.39750375,0.00027393,2]
[311302220,1705053039922,-500.0,0.00027393,2]
[311302222,1705053039931,-232.82347387,0.00027393,2]
[311302224,1705053039940,-502.20916932,0.00027393,2]
[311302226,1705053039949,-378.79126552,0.00027393,2]
[311302228,1705053039958,-500.0,0.00027393,2]
[311302230,1705053039967,-153.88781309,0.00027393,2]
[311302232,1705053039979,-624.57,0.00027393,2]
[311302234,1705053039989,-500.0,0.00027393,2]
[311302236,1705053039998,-522.66771655,0.00027393,2]
[311302239,1705053040007,-319.11002705,0.00027393,2]
[311302241,1705053040017,-500.0,0.00027393,2]
[311302243,1705053040026,-500.0,0.00027393,2]
[311302245,1705053040035,-500.0,0.00027393,2]
[311302247,1705053040044,-502.12095354,0.00027393,2]
[311302249,1705053040053,-500.0,0.00027393,2]
[311302251,1705053040063,-500.0,0.00027393,2]
[311302253,1705053040072,-500.0,0.00027393,2]
[311302255,1705053040082,-500.0,0.00027393,2]
[311302257,1705053040091,-167.82025425,0.00027393,2]
[311302259,1705053040100,-500.0,0.00027393,2]
[311302261,1705053040109,-382.08390874,0.00027393,2]
[311302263,1705053040119,-500.0,0.00027393,2]
[311302265,1705053040128,-543.84182805,0.00027393,2]
[311302267,1705053040137,-500.0,0.00027393,2]
[311302269,1705053040147,-501.6406809,0.00027393,2]
[311302271,1705053040156,-1003.74135269,0.00027393,2]
[311302273,1705053040165,-500.0,0.00027393,2]
[311302275,1705053040174,-500.0,0.00027393,2]
[311302276,1705053040183,-500.0,0.00027393,2]
[311302278,1705053040192,-517.79719127,0.00027393,2]
[311302280,1705053040201,-594.78,0.00027393,2]
[311302282,1705053040210,-300.49394469,0.00027393,2]
[311302285,1705053040225,-500.0,0.00027393,2]
[311302287,1705053040234,-500.0,0.00027393,2]
[311302288,1705053040243,-500.0,0.00027393,2]
[311302291,1705053040254,-500.0,0.00027393,2]
[311302293,1705053040263,-500.0,0.00027393,2]
[311302295,1705053040272,-500.0,0.00027393,2]
[311302296,1705053040281,-500.0,0.00027393,2]
[311302298,1705053040290,-500.0,0.00027393,2]
[311302300,1705053040299,-500.0,0.00027393,2]
[311302302,1705053040309,-501.14220574,0.00027393,2]
[311302305,1705053040318,-500.0,0.00027393,2]
[311302306,1705053040328,-501.47730939,0.00027393,2]
[311302308,1705053040337,-500.0,0.00027393,2]
[311302310,1705053040346,-282.34658644,0.00027393,2]
[311302313,1705053040356,-514.20057059,0.00027393,2]
[311302315,1705053040365,-500.0,0.00027393,2]
[311302317,1705053040374,-500.0,0.00027393,2]
[311302318,1705053040383,-525.16747948,0.00027393,2]
[311302320,1705053040392,-500.0,0.00027393,2]
[311302322,1705053040401,-500.0,0.00027393,2]
[311302324,1705053040410,-202.55822643,0.00027393,2]
[311302326,1705053040419,-626.95096932,0.00027393,2]
[311302329,1705053040429,-500.95295701,0.00027393,2]
[311302330,1705053040438,-500.0,0.00027393,2]
[311302332,1705053040449,-500.0,0.00027393,2]
[311302334,1705053040458,-500.0,0.00027393,2]
[311302336,1705053040467,-322.80588163,0.00027393,2]
[311302338,1705053040479,-500.0,0.00027393,2]
[311302340,1705053040489,-500.0,0.00027393,2]
[311302342,1705053040497,-500.0,0.00027393,2]
[311302344,1705053040506,-550.11699991,0.00027393,2]
[311302346,1705053040515,-500.57720315,0.00027393,2]
[311302348,1705053040524,-500.0,0.00027393,2]
[311302350,1705053040532,-500.0,0.00027393,2]
[311302352,1705053040541,-500.0,0.00027393,2]
[311302354,1705053040550,-500.0,0.00027393,2]
[311302356,1705053040558,-500.0,0.00027393,2]
[311302358,1705053040567,-500.0,0.00027393,2]
[311302360,1705053040576,-501.25973667,0.00027393,2]
[311302362,1705053040586,-500.0,0.00027393,2]
[311302364,1705053040595,-502.64372719,0.00027393,2]
[311302366,1705053040604,-504.4552916,0.00027393,2]
[311302368,1705053040613,-202.88287603,0.00027393,2]
[311302370,1705053040623,-500.0,0.00027393,2]
[311302372,1705053040632,-478.26563161,0.00027393,2]
[311302374,1705053040641,-500.0,0.00027393,2]
[311302376,1705053040650,-501.70820656,0.00027393,5]
[311302378,1705053040659,-500.0,0.00027393,2]
[311302380,1705053040668,-533.04482438,0.00027393,2]
[311302382,1705053040676,-500.0,0.00027393,2]
[311302384,1705053040685,-500.0,0.00027393,2]
[311302386,1705053040694,-500.0,0.00027393,2]
[311302388,1705053040703,-503.59425877,0.00027393,2]
[311302390,1705053040712,-500.0,0.00027393,2]
[311302392,1705053040722,-500.0,0.00027393,2]
[311302394,1705053040731,-502.95042348,0.00027393,2]
[311302396,1705053040740,-506.61856597,0.00027393,2]
[311302398,1705053040750,-500.0,0.00027393,2]
[311302400,1705053040759,-500.0,0.00027393,2]
[311302402,1705053040768,-401.11191083,0.00027393,2]
[311302404,1705053040778,-500.0,0.00027393,2]
[311302406,1705053040787,-500.0,0.00027393,2]
[311302408,1705053040796,-500.0,0.00027393,2]
[311302410,1705053040805,-500.0,0.00027393,2]
[311302412,1705053040814,-155.00732101,0.00027393,2]
[311302414,1705053040823,-500.0,0.00027393,2]
[311302416,1705053040832,-500.0,0.00027393,2]
[311302418,1705053040841,-500.0,0.00027393,2]
[311302420,1705053040850,-503.79077812,0.00027393,2]
[311302422,1705053040859,-500.0,0.00027393,2]
[311302424,1705053040868,-500.0,0.00027393,2]
[311302426,1705053040877,-213.23093798,0.00027393,2]
[311302428,1705053040886,-502.64347606,0.00027393,2]
[311302430,1705053040895,-501.52822313,0.00027393,2]
[311302432,1705053040905,-500.0,0.00027393,2]
[311302433,1705053040933,-419.81188514,0.00027393,2]
[311302435,1705053040942,-500.0,0.00027393,2]
[311302437,1705053040951,-500.0,0.00027393,2]
[311302439,1705053040960,-500.0,0.00027393,2]
[311302441,1705053040970,-572.10284214,0.00027393,2]
[311302443,1705053040980,-963.62,0.00027393,2]
[311302445,1705053040989,-500.0,0.00027393,2]
[311302447,1705053040999,-500.0,0.00027393,2]
[311302449,1705053041008,-502.10635393,0.00027393,2]
[311302451,1705053041017,-500.0,0.00027393,2]
[311302453,1705053041026,-500.0,0.00027393,2]
[311302455,1705053041035,-500.0,0.00027393,2]
[311302457,1705053041045,-601.55700374,0.00027393,2]
[311302459,1705053041054,-500.0,0.00027393,2]
[311302461,1705053041063,-500.0,0.00027393,2]
[311302463,1705053041072,-500.0,0.00027393,2]
[311302465,1705053041082,-500.0,0.00027393,2]
[311302467,1705053041091,-500.0,0.00027393,2]
[311302469,1705053041099,-500.0,0.00027393,2]
[311302471,1705053041108,-500.0,0.00027393,2]
[311302473,1705053041117,-346.20588166,0.00027393,2]
[311302475,1705053041126,-500.0,0.00027393,2]
[311302477,1705053041135,-500.0,0.00027393,2]
[311302479,1705053041144,-500.0,0.00027393,2]
[311302481,1705053041153,-500.0,0.00027394,2]
[311302483,1705053041162,-201.3021149,0.00027394,2]
[311302485,1705053041171,-500.0,0.00027394,2]
[311302487,1705053041179,-508.33650594,0.00027394,2]
[311302489,1705053041188,-508.31090539,0.00027394,2]
[311302491,1705053041197,-163.39120752,0.00027394,2]
[311302493,1705053041206,-500.0,0.00027394,2]
[311302495,1705053041215,-500.0,0.00027394,2]
[311302497,1705053041227,-500.0,0.00027394,2]
[311302499,1705053041236,-500.0,0.00027394,2]
[311302501,1705053041245,-501.68054137,0.00027394,2]
[311302503,1705053041254,-500.0,0.00027394,2]
[311302505,1705053041263,-500.0,0.00027394,2]
[311302507,1705053041271,-500.0,0.00027394,2]
[311302509,1705053041280,-500.0,0.00027394,2]
[311302511,1705053041289,-500.0,0.00027394,2]
[311302513,1705053041298,-500.0,0.00027394,2]
[311302515,1705053041307,-500.0,0.00027394,2]
[311302517,1705053041316,-1000.0,0.00027394,2]
[311302519,1705053041325,-376.12675953,0.00027394,2]
[311302521,1705053041335,-500.0,0.00027394,2]
[311302523,1705053041344,-500.0,0.00027394,2]
[311302525,1705053041352,-500.0,0.00027394,2]
[311302527,1705053041361,-500.0,0.00027394,2]
[311302529,1705053041370,-386.69923509,0.00027394,2]
[311302531,1705053041383,-17.40712186,0.00027395,2]
[311302533,1705053041392,-500.0,0.00027396,2]
[311302535,1705053041401,-500.0,0.00027397,2]
[311302537,1705053041410,-155.0,0.00027397,2]
[311302539,1705053041419,-5040.78024938,0.00027397,10]
[311302541,1705053041428,-331.23132764,0.00027397,2]
[311302543,1705053041437,-600.0,0.00027397,2]
[311302545,1705053041446,-1000.0,0.00027397,2]
[311302547,1705053041454,-500.0,0.00027397,2]
[311302549,1705053041464,-2668.75780514,0.00027397,2]
[311302550,1705053041472,-1946.07520505,0.000274,2]
[311302553,1705053041489,-130.75097094,0.000274,2]
[311302555,1705053041498,-154.12710866,0.0002757,2]
[311302557,1705053041507,-90389.02676416,0.00027571,2]
[311302559,1705053041517,-620.00964586,0.00027651,2]
[311302561,1705053041526,-401.17110365,0.00027664,2]
[311302563,1705053041535,-947.43868379,0.00027664,2]
[311302565,1705053041545,-297.17777658,0.00027664,2]
[311302567,1705053041554,-155.10993602,0.00027664,2]
[311302569,1705053041562,-156.86767994,0.00027664,2]
[311302571,1705053041571,-212.96062918,0.00027664,2]
[311302573,1705053041580,-312.98141829,0.00027664,2]
[311302575,1705053041590,-178.44106149,0.00027665,2]
[311302586,1705053041680,-828.29552574,0.00027665,2]
[311302588,1705053041690,-502.97945637,0.00027666,2]
[311302590,1705053041698,-554.42766068,0.00027666,2]
[311302592,1705053041708,-500.0,0.00027666,2]
[311302594,1705053041717,-500.0,0.00027666,2]
[311302596,1705053041727,-500.0,0.00027666,2]
[311302598,1705053041736,-500.0,0.00027666,2]
[311302600,1705053041746,-499.58251508,0.00027666,2]
[311302602,1705053041756,-500.0,0.00027666,2]